fUST/lending_fUST_20240707
["ID","MTS","AMOUNT","RATE_DAILY","PERIOD"]
[331393792,1720336239512,-3000.0,0.000263,2]
[331393793,1720336239523,-3000.0,0.0002631,2]
[331393794,1720336239533,-257.146742,0.0002631,7]
[331393795,1720336239543,-257.146742,0.0002631,7]
[331393796,1720336239553,-151.0,0.0002631,7]
[331393797,1720336239563,-3000.0,0.0002632,2]
[331393798,1720336239573,-151.0,0.0002632,7]
[331393799,1720336239583,-240.273036,0.0002632,7]
[331393800,1720336239592,-151.0,0.0002632,7]
[331393801,1720336239602,-151.0,0.0002632,7]
[331393802,1720336239612,-151.0,0.0002632,7]
[331393803,1720336239623,-151.0,0.0002632,7]
[331393804,1720336239632,-275.898997,0.0002632,7]
[331393805,1720336239642,-275.898997,0.0002632,7]
[331393806,1720336239653,-3000.0,0.0002633,2]
[331393807,1720336239663,-3000.0,0.0002634,2]
[331393808,1720336239673,-3000.0,0.0002635,2]
[331393809,1720336239683,-3000.0,0.0002636,2]
[331393810,1720336239693,-3000.0,0.0002637,2]
[331393811,1720336239703,-3000.0,0.0002638,2]
[331393812,1720336239712,-306.0,0.00026384,2]
[331393813,1720336239722,-3000.0,0.0002639,2]
[331393814,1720336239732,-3000.0,0.000264,2]
[331393815,1720336239743,-3000.0,0.0002641,2]
[331393816,1720336239754,-37330.5318154,0.0002641,3]
[331393817,1720336239764,-275.966395,0.0002641,7]
[331393818,1720336239786,-3000.0,0.0002642,2]
[331393819,1720336239796,-3000.0,0.0002643,2]
[331393820,1720336239806,-3000.0,0.0002644,2]
[331393821,1720336239817,-3042.379392,0.0002645,2]
[331393822,1720336239828,-3000.0,0.000265,2]
[331393823,1720336239839,-3000.0,0.0002651,2]
[331393824,1720336239849,-3000.0,0.0002652,2]
[331393825,1720336239860,-3000.0,0.0002653,2]
[331393827,1720336239870,-3000.0,0.0002654,2]
[331393829,1720336239881,-3000.0,0.0002655,2]
[331393830,1720336239892,-257.146742,0.0002655,7]
[331393831,1720336239903,-257.146742,0.0002655,7]
[331393832,1720336239913,-151.0,0.0002655,7]
[331393833,1720336239924,-3000.0,0.0002656,2]
[331393834,1720336239934,-199.817352,0.0002656,7]
[331393835,1720336239944,-151.0,0.0002656,7]
[331393836,1720336239954,-275.898997,0.0002656,7]
[331393837,1720336239964,-275.898997,0.0002656,7]
[331393838,1720336239975,-3000.0,0.0002657,2]
[331393839,1720336239985,-151.0,0.0002657,7]
[331393840,1720336239996,-151.0,0.0002657,7]
[331393841,1720336240006,-151.0,0.0002657,7]
[331393842,1720336240017,-3000.0,0.0002658,2]
[331393843,1720336240027,-3000.0,0.0002659,2]
[331393844,1720336240037,-3000.0,0.000266,2]
[331393845,1720336240047,-275.966395,0.000266,7]
[331393846,1720336240057,-37330.5318154,0.000266,3]
[331393847,1720336240068,-3000.0,0.0002661,2]
[331393848,1720336240079,-3000.0,0.0002662,2]
[331393849,1720336240090,-3000.0,0.0002663,2]
[331393850,1720336240101,-3000.0,0.0002664,2]
[331393851,1720336240111,-3000.0,0.0002665,2]
[331393852,1720336240122,-3000.0,0.0002666,2]
[331393853,1720336240133,-3000.0,0.0002667,2]
[331393854,1720336240144,-3000.0,0.0002668,2]
[331393855,1720336240159,-3000.0,0.0002669,2]
[331393856,1720336240170,-3000.0,0.000267,2]
[331393857,1720336240181,-3000.0,0.0002671,2]
[331393858,1720336240192,-3000.0,0.0002672,2]
[331393859,1720336240203,-3000.0,0.0002673,2]
[331393860,1720336240398,-3000.0,0.0002674,2]
[331393861,1720336240411,-3000.0,0.0002675,2]
[331393862,1720336240422,-257.146742,0.0002675,7]
[331393863,1720336240433,-257.146742,0.0002675,7]
[331393864,1720336240443,-151.0,0.0002675,7]
[331393865,1720336240455,-3000.0,0.0002676,2]
[331393866,1720336240465,-275.966395,0.0002676,7]
[331393867,1720336240475,-37330.5318154,0.0002676,3]
[331393868,1720336240486,-3000.0,0.0002677,2]
[331393869,1720336240496,-151.0,0.0002677,7]
[331393870,1720336240506,-275.898997,0.0002677,7]
[331393871,1720336240516,-275.898997,0.0002677,7]
[331393872,1720336240526,-3000.0,0.0002678,2]
[331393873,1720336240535,-151.0,0.0002678,7]
[331393874,1720336240545,-151.0,0.0002678,7]
[331393875,1720336240554,-151.0,0.0002678,7]
[331393876,1720336240568,-3000.0,0.0002679,2]
[331393877,1720336240578,-3000.0,0.000268,2]
[331393878,1720336240589,-3000.0,0.0002681,2]
[331393879,1720336240599,-3000.0,0.0002682,2]
[331393880,1720336240610,-3000.0,0.0002683,2]
[331393881,1720336240620,-3000.0,0.0002684,2]
[331393882,1720336240629,-412.362969,0.00026849,2]
[331393883,1720336240639,-3000.0,0.0002685,2]
[331393884,1720336240652,-3000.0,0.0002686,2]
[331393885,1720336240661,-3000.0,0.0002687,2]
[331393886,1720336240671,-3000.0,0.0002688,2]
[331393887,1720336240681,-3000.0,0.0002689,2]
[331393888,1720336240691,-3000.0,0.000269,2]
[331393889,1720336240701,-3000.0,0.0002691,2]
[331393890,1720336240711,-3000.0,0.0002692,2]
[331393891,1720336240721,-3000.0,0.0002693,2]
[331393892,1720336240731,-3000.0,0.0002694,2]
[331393893,1720336240742,-3000.0,0.0002695,2]
[331393894,1720336240753,-257.146742,0.0002695,7]
[331393895,1720336240763,-257.146742,0.0002695,7]
[331393896,1720336240773,-151.0,0.0002695,7]
[331393897,1720336240783,-3000.0,0.0002696,2]
[331393898,1720336240793,-275.966395,0.0002696,7]
[331393899,1720336240803,-3365.551689,0.0002697,2]
[331393900,1720336240814,-151.0,0.0002697,7]
[331393901,1720336240824,-275.898997,0.0002697,7]
[331393902,1720336240834,-275.898997,0.0002697,7]
[331393903,1720336240845,-153.675,0.00027042,2]
[331393904,1720336240855,-150.0,0.00027042,2]
[331393905,1720336240864,-150.0,0.00027042,2]
[331393906,1720336240874,-167.555182,0.00027123,2]
[331393907,1720336240884,-167.555182,0.00027123,120]
[331393908,1720336240894,-412.938379,0.00027195,2]
[331393909,1720336240911,-337.061621,0.00027195,2]
[331393910,1720336240921,-500.0,0.00027397,2]
[331393911,1720336240931,-292.64190241,0.00027397,2]
[331393912,1720336240940,-151.0,0.00027397,7]
[331393913,1720336240950,-151.0,0.00027397,7]
[331393914,1720336240959,-151.0,0.00027397,7]
[331393915,1720336240969,-1000.0,0.00027489,30]
[331393916,1720336240978,-3503.35871947,0.000275,2]
[331393917,1720336240993,-842.05662477,0.000275,2]
[331393919,1720336241424,-151.0,0.0002612,7]
[331393920,1720336241434,-275.966395,0.0002612,7]
[331393922,1720336241444,-275.966395,0.0002626,7]
[331393924,1720336241455,-275.966395,0.0002641,7]
[331393926,1720336241465,-275.966395,0.000266,7]
[331393928,1720336241475,-275.966395,0.0002676,7]
[331393930,1720336241485,-404.21315953,0.000275,2]
[331393936,1720336243617,-275.966395,0.0002696,7]
[331393939,1720336243627,-2606.533605,0.000275,2]
[331393980,1720336719195,1235.44285977,0.00013058,2]
[331393984,1720336822269,246.502,0.00013058,2]
[331393990,1720337110976,190.47050284,0.00015828,2]
[331393995,1720337318959,8398.67065147,0.00014998,2]
[331394024,1720337434181,-300.0,0.00016254,2]
[331394025,1720337434190,-951.47792908,0.00016255,2]
[331394026,1720337434202,-302.0,0.00016255,2]
[331394116,1720337439046,-21880.81501571,0.00016255,2]
[331394118,1720337439056,-166.666666,0.00016443,2]
[331394121,1720337439066,-276.36783038,0.00016803,2]
[331394123,1720337439076,-166.666666,0.00016891,2]
[331394126,1720337439087,-1723.28862398,0.0001724,2]
[331394129,1720337439097,-149.80905278,0.00017258,2]
[331394131,1720337439107,-24900.0,0.0001726,2]
[331394134,1720337439117,-166.666666,0.0001734,2]
[331394136,1720337439127,-166.666666,0.00017788,2]
[331394137,1720337439137,-420.0,0.00017879,2]
[331394139,1720337439147,-154.96442838,0.00018,2]
[331394141,1720337439157,-798.831825,0.00018144,2]
[331394142,1720337439167,-10396.5766428,0.00018234,2]
[331394144,1720337439177,-166.666666,0.00018236,2]
[331394146,1720337439187,-166.666666,0.00018685,2]
[331394147,1720337439198,-3871.22443796,0.000189,2]
[331394149,1720337439209,-3000.0,0.00019054,2]
[331394151,1720337439219,-159.476866,0.00019178,2]
[331394152,1720337439228,-250.0,0.0001921,2]
[331394154,1720337439237,-587.0,0.00019667,2]
[331394156,1720337439247,-428.07800494,0.0002,2]
[331394157,1720337439257,-1117.35505048,0.0002,2]
[331394159,1720337439266,-225.62340528,0.0002,2]
[331394161,1720337439276,-10276.35107581,0.0002,2]
[331394162,1720337439286,-287.6696459,0.0002,2]
[331394164,1720337439296,-435.0,0.0002,2]
[331394166,1720337439305,-150.0,0.00020367,2]
[331394167,1720337439315,-250.34676675,0.00020367,2]
[331394169,1720337439325,-241.89133334,0.00020915,2]
[331394171,1720337439335,-620.01477708,0.00021,2]
[331394173,1720337439345,-750.0,0.00021096,2]
[331394174,1720337439355,-433.316149,0.00021096,2]
[331394176,1720337439366,-1723.28862393,0.00021299,2]
[331394178,1720337439377,-823.0,0.00021634,2]
[331394180,1720337439387,-239.70701363,0.00022,2]
[331394181,1720337439397,-620.00073885,0.0002205,2]
[331394183,1720337439407,-879.66892954,0.00022367,2]
[331394185,1720337439416,-200.0,0.00023,2]
[331394186,1720337439427,-620.00003694,0.00023153,2]
[331394188,1720337439436,-150.0,0.00023333,2]
[331394189,1720337439447,-3970.43161859,0.00023453,2]
[331394190,1720337439459,-3970.43161859,0.00023453,2]
[331394192,1720337439469,-197.21976724,0.00023455,2]
[331394193,1720337439479,-378.78,0.00023787,3]
[331394195,1720337439490,-1152.0,0.00023797,2]
[331394196,1720337439500,-250.0,0.00023881,2]
[331394198,1720337439509,-48383.1145205,0.0002389,3]
[331394199,1720337439519,-3871.22443796,0.000239,2]
[331394201,1720337439529,-208.45254163,0.000239,2]
[331394202,1720337439540,-150.41372044,0.000239,2]
[331394204,1720337439550,-150.0,0.000239,2]
[331394206,1720337439559,-620.00000185,0.0002431,2]
[331394207,1720337439569,-160.52658988,0.00024448,2]
[331394209,1720337439580,-380.0,0.00024658,2]
[331394210,1720337439590,-193.40528129,0.00025,2]
[331394212,1720337439600,-190.58027952,0.00025,2]
[331394214,1720337439609,-500.0,0.00025,2]
[331394215,1720337439619,-1723.28862393,0.00025358,2]
[331394217,1720337439630,-185.881161,0.00025401,2]
[331394219,1720337439640,-238.641505,0.00025481,7]
[331394220,1720337439650,-151.0,0.00025481,7]
[331394222,1720337439660,-238.641505,0.00025481,7]
[331394224,1720337439670,-151.0,0.00025481,7]
[331394225,1720337439681,-156.924223,0.00025481,7]
[331394227,1720337439691,-48383.1145205,0.00025481,3]
[331394228,1720337439700,-73382.25245102,0.00025491,2]
[331394230,1720337439710,-238.641505,0.00025491,7]
[331394231,1720337439720,-151.0,0.00025491,7]
[331394233,1720337439730,-238.641505,0.00025491,7]
[331394235,1720337439740,-151.0,0.00025491,7]
[331394236,1720337439750,-96766.229041,0.00025491,3]
[331394238,1720337439760,-151.421555,0.00025501,7]
[331394240,1720337439770,-266.353486,0.00025501,7]
[331394242,1720337439782,-151.0,0.00025501,7]
[331394243,1720337439792,-151.0,0.00025501,7]
[331394245,1720337439803,-151.0,0.00025501,7]
[331394247,1720337439813,-151.0,0.00025501,7]
[331394248,1720337439824,-266.353486,0.00025501,7]
[331394250,1720337439834,-151.0,0.00025501,7]
[331394252,1720337439843,-151.0,0.00025501,7]
[331394254,1720337439854,-151.0,0.00025501,7]
[331394255,1720337439864,-264.303005,0.00025501,7]
[331394257,1720337439874,-264.303005,0.00025501,7]
[331394258,1720337439884,-151.0,0.00025501,7]
[331394260,1720337439893,-151.0,0.00025501,7]
[331394262,1720337439903,-151.0,0.00025501,7]
[331394263,1720337439913,-238.641505,0.00025501,7]
[331394265,1720337439923,-151.0,0.00025501,7]
[331394266,1720337439933,-238.641505,0.00025501,7]
[331394268,1720337439942,-151.0,0.00025501,7]
[331394269,1720337439952,-52119.39254387,0.00025501,2]
[331394271,1720337439963,-30000.0,0.00025501,2]
[331394272,1720337439974,-620.00000009,0.00025526,2]
[331394274,1720337439984,-185.881161,0.0002563,2]
[331394275,1720337439994,-185.881161,0.00025859,2]
[331394276,1720337440003,-238.641505,0.0002594,7]
[331394277,1720337440013,-151.0,0.0002594,7]
[331394278,1720337440023,-238.641505,0.0002594,7]
[331394279,1720337440033,-151.0,0.0002594,7]
[331394280,1720337440043,-96766.229041,0.0002594,3]
[331394281,1720337440053,-264.303005,0.00025949,7]
[331394282,1720337440064,-264.303005,0.00025949,7]
[331394283,1720337440074,-151.0,0.00025949,7]
[331394284,1720337440085,-151.0,0.0002595,7]
[331394285,1720337440095,-151.0,0.0002595,7]
[331394286,1720337440105,-264.303005,0.0002595,7]
[331394287,1720337440115,-264.303005,0.0002595,7]
[331394288,1720337440125,-151.0,0.0002595,7]
[331394289,1720337440136,-151.0,0.0002595,7]
[331394290,1720337440147,-170.714717,0.0002595,7]
[331394291,1720337440158,-238.641505,0.0002595,7]
[331394292,1720337440168,-238.641505,0.0002595,7]
[331394293,1720337440179,-151.0,0.0002595,7]
[331394294,1720337440189,-238.641505,0.0002595,7]
[331394295,1720337440200,-238.641505,0.0002595,7]
[331394296,1720337440211,-151.0,0.0002595,7]
[331394297,1720337440220,-151.0,0.0002595,7]
[331394298,1720337440231,-151.0,0.0002595,7]
[331394299,1720337440241,-88888.0,0.0002595,3]
[331394300,1720337440251,-500.0,0.00026,2]
[331394301,1720337440262,-3000.0,0.00026,2]
[331394302,1720337440273,-3000.0,0.0002601,2]
[331394303,1720337440283,-151.0,0.0002601,7]
[331394304,1720337440294,-3000.0,0.0002602,2]
[331394305,1720337440304,-266.353486,0.0002602,7]
[331394306,1720337440314,-266.353486,0.0002602,7]
[331394307,1720337440327,-3000.0,0.0002603,2]
[331394308,1720337440338,-3000.0,0.0002604,2]
[331394309,1720337440349,-3000.0,0.0002605,2]
[331394310,1720337440359,-266.353486,0.0002605,7]
[331394311,1720337440369,-151.0,0.0002605,7]
[331394312,1720337440382,-266.353486,0.0002605,7]
[331394313,1720337440396,-151.0,0.0002605,7]
[331394314,1720337440407,-266.353486,0.0002605,7]
[331394315,1720337440418,-266.353486,0.0002605,7]
[331394316,1720337440429,-168.08001,0.0002605,7]
[331394317,1720337440439,-151.0,0.0002605,7]
[331394318,1720337440450,-151.0,0.0002605,7]
[331394319,1720337440460,-151.0,0.0002605,7]
[331394320,1720337440471,-151.0,0.0002605,7]
[331394321,1720337440481,-264.303005,0.0002605,7]
[331394322,1720337440492,-264.303005,0.0002605,7]
[331394323,1720337440503,-151.0,0.0002605,7]
[331394324,1720337440514,-151.0,0.0002605,7]
[331394325,1720337440524,-151.0,0.0002605,7]
[331394326,1720337440534,-3000.0,0.0002606,2]
[331394327,1720337440544,-3000.0,0.0002607,2]
[331394328,1720337440554,-3000.0,0.0002608,2]
[331394329,1720337440565,-185.881161,0.00026087,2]
[331394330,1720337440575,-3000.0,0.0002609,2]
[331394331,1720337440585,-3000.0,0.000261,2]
[331394332,1720337440596,-238.641505,0.000261,7]
[331394333,1720337440606,-238.641505,0.000261,7]
[331394334,1720337440617,-151.0,0.000261,7]
[331394335,1720337440627,-272.907309,0.000261,7]
[331394336,1720337440638,-3000.0,0.0002611,2]
[331394337,1720337440648,-3000.0,0.0002612,2]
[331394338,1720337440659,-3000.0,0.0002613,2]
[331394339,1720337440669,-3000.0,0.0002614,2]
[331394340,1720337440679,-3000.0,0.0002615,2]
[331394341,1720337440689,-1000.0,0.00026159,10]
[331394342,1720337440699,-266.353486,0.00026159,7]
[331394343,1720337440710,-266.353486,0.00026159,7]
[331394344,1720337440720,-3000.0,0.0002616,2]
[331394345,1720337440730,-151.0,0.0002616,7]
[331394346,1720337440740,-151.0,0.0002616,7]
[331394347,1720337440750,-264.303005,0.0002616,7]
[331394348,1720337440760,-264.303005,0.0002616,7]
[331394349,1720337440911,-218.921053,0.0002616,7]
[331394350,1720337440922,-151.0,0.0002616,7]
[331394351,1720337440932,-3000.0,0.0002617,2]
[331394352,1720337440943,-151.0,0.0002617,7]
[331394353,1720337440953,-153.006728,0.0002617,7]
[331394354,1720337440964,-3000.0,0.0002618,2]
[331394355,1720337440973,-3000.0,0.0002619,2]
[331394356,1720337440982,-3000.0,0.000262,2]
[331394357,1720337440992,-151.0,0.000262,7]
[331394358,1720337441002,-266.353486,0.000262,7]
[331394359,1720337441011,-266.353486,0.000262,7]
[331394360,1720337441021,-151.0,0.000262,7]
[331394361,1720337441031,-151.0,0.000262,7]
[331394362,1720337441041,-264.303005,0.000262,7]
[331394363,1720337441051,-264.303005,0.000262,7]
[331394364,1720337441061,-151.0,0.000262,7]
[331394365,1720337441071,-3000.0,0.0002621,2]
[331394366,1720337441081,-238.641505,0.0002621,7]
[331394367,1720337441090,-238.641505,0.0002621,7]
[331394368,1720337441100,-151.0,0.0002621,7]
[331394369,1720337441110,-3000.0,0.0002622,2]
[331394370,1720337441120,-1000.0,0.00026229,10]
[331394371,1720337441129,-1000.0,0.00026229,10]
[331394372,1720337441139,-275.898997,0.00026229,7]
[331394373,1720337441148,-275.898997,0.00026229,7]
[331394374,1720337441158,-208.382013,0.00026229,7]
[331394375,1720337441168,-208.382013,0.00026229,7]
[331394376,1720337441177,-231.432067,0.0002623,7]
[331394377,1720337441188,-231.432067,0.0002623,7]
[331394378,1720337441198,-275.898997,0.0002623,7]
[331394379,1720337441208,-3000.0,0.0002623,2]
[331394380,1720337441218,-275.898997,0.0002623,7]
[331394381,1720337441228,-208.382013,0.0002623,7]
[331394382,1720337441238,-208.382013,0.0002623,7]
[331394383,1720337441248,-208.382013,0.0002623,7]
[331394384,1720337441258,-208.382013,0.0002623,7]
[331394385,1720337441267,-3000.0,0.0002624,2]
[331394386,1720337441277,-3000.0,0.0002625,2]
[331394387,1720337441287,-3000.0,0.0002626,2]
[331394388,1720337441296,-3000.0,0.0002627,2]
[331394389,1720337441307,-3000.0,0.0002628,2]
[331394390,1720337441317,-3000.0,0.0002629,2]
[331394391,1720337441327,-3000.0,0.000263,2]
[331394392,1720337441336,-3000.0,0.0002631,2]
[331394393,1720337441346,-151.0,0.0002631,7]
[331394394,1720337441356,-266.353486,0.0002631,7]
[331394395,1720337441366,-266.353486,0.0002631,7]
[331394396,1720337441375,-151.0,0.0002631,7]
[331394397,1720337441384,-151.0,0.0002631,7]
[331394398,1720337441395,-264.303005,0.0002631,7]
[331394399,1720337441405,-264.303005,0.0002631,7]
[331394400,1720337441415,-151.0,0.0002631,7]
[331394401,1720337441425,-199.817352,0.0002631,7]
[331394402,1720337441435,-185.881161,0.00026316,2]
[331394403,1720337441444,-3000.0,0.0002632,2]
[331394404,1720337441455,-238.641505,0.0002632,7]
[331394405,1720337441465,-238.641505,0.0002632,7]
[331394406,1720337441475,-3000.0,0.0002633,2]
[331394407,1720337441484,-3000.0,0.0002634,2]
[331394408,1720337441494,-266.353486,0.0002634,7]
[331394409,1720337441504,-151.0,0.0002634,7]
[331394410,1720337441513,-266.353486,0.0002634,7]
[331394411,1720337441522,-151.0,0.0002634,7]
[331394412,1720337441532,-151.0,0.0002634,7]
[331394413,1720337441541,-264.303005,0.0002634,7]
[331394414,1720337441551,-264.303005,0.0002634,7]
[331394415,1720337441561,-151.0,0.0002634,7]
[331394416,1720337441571,-3000.0,0.0002635,2]
[331394417,1720337441580,-3000.0,0.0002636,2]
[331394418,1720337441589,-3000.0,0.0002637,2]
[331394419,1720337441598,-3000.0,0.0002638,2]
[331394420,1720337441607,-3000.0,0.0002639,2]
[331394421,1720337441616,-3000.0,0.000264,2]
[331394422,1720337441627,-3000.0,0.0002641,2]
[331394423,1720337441638,-3000.0,0.0002642,2]
[331394424,1720337441648,-3000.0,0.0002643,2]
[331394425,1720337441658,-3000.0,0.0002644,2]
[331394426,1720337441668,-238.641505,0.0002644,7]
[331394427,1720337441678,-238.64151,0.0002644,7]
[331394428,1720337441688,-3000.0,0.0002645,2]
[331394429,1720337441698,-3042.379392,0.0002646,2]
[331394430,1720337441708,-151.0,0.0002646,7]
[331394431,1720337441718,-266.353486,0.0002646,7]
[331394432,1720337441727,-266.353486,0.0002646,7]
[331394433,1720337441736,-151.0,0.0002646,7]
[331394434,1720337441745,-186.604966,0.0002646,7]
[331394435,1720337441755,-264.303005,0.0002646,7]
[331394436,1720337441764,-264.303005,0.0002646,7]
[331394437,1720337441774,-151.0,0.0002646,7]
[331394438,1720337441789,-3000.0,0.000265,2]
[331394439,1720337441799,-3000.0,0.0002651,2]
[331394440,1720337441809,-3000.0,0.0002652,2]
[331394441,1720337441819,-3000.0,0.0002653,2]
[331394442,1720337441831,-151.0,0.0002653,7]
[331394443,1720337441842,-266.353486,0.0002653,7]
[331394444,1720337441852,-266.353483,0.0002653,7]
[331394445,1720337441864,-151.0,0.0002653,7]
[331394446,1720337441874,-264.303005,0.0002653,7]
[331394447,1720337441885,-264.303011,0.0002653,7]
[331394448,1720337441895,-151.0,0.0002653,7]
[331394449,1720337441905,-3000.0,0.0002654,2]
[331394450,1720337441916,-3000.0,0.0002655,2]
[331394451,1720337441928,-3000.0,0.0002656,2]
[331394452,1720337441938,-3000.0,0.0002657,2]
[331394453,1720337441948,-3000.0,0.0002658,2]
[331394454,1720337441958,-3000.0,0.0002659,2]
[331394455,1720337441968,-3000.0,0.000266,2]
[331394456,1720337441978,-3000.0,0.0002661,2]
[331394457,1720337441987,-3000.0,0.0002662,2]
[331394458,1720337441996,-3000.0,0.0002663,2]
[331394459,1720337442005,-3000.0,0.0002664,2]
[331394460,1720337442015,-3000.0,0.0002665,2]
[331394461,1720337442024,-3000.0,0.0002666,2]
[331394462,1720337442034,-151.0,0.0002666,7]
[331394463,1720337442043,-3000.0,0.0002667,2]
[331394464,1720337442052,-3000.0,0.0002668,2]
[331394465,1720337442061,-3000.0,0.0002669,2]
[331394466,1720337442070,-3000.0,0.000267,2]
[331394467,1720337442079,-3000.0,0.0002671,2]
[331394468,1720337442089,-3000.0,0.0002672,2]
[331394469,1720337442098,-3000.0,0.0002673,2]
[331394470,1720337442107,-3000.0,0.0002674,2]
[331394471,1720337442116,-3000.0,0.0002675,2]
[331394472,1720337442126,-3000.0,0.0002676,2]
[331394473,1720337442135,-3000.0,0.0002677,2]
[331394474,1720337442144,-3000.0,0.0002678,2]
[331394475,1720337442153,-3000.0,0.0002679,2]
[331394476,1720337442163,-3000.0,0.000268,2]
[331394477,1720337442172,-620.0,0.00026802,2]
[331394478,1720337442181,-3000.0,0.0002681,2]
[331394479,1720337442191,-3000.0,0.0002682,2]
[331394480,1720337442200,-3000.0,0.0002683,2]
[331394481,1720337442211,-3000.0,0.0002684,2]
[331394482,1720337442221,-1000.0,0.00026847,10]
[331394483,1720337442230,-3000.0,0.0002685,2]
[331394484,1720337442239,-3000.0,0.0002686,2]
[331394485,1720337442248,-3000.0,0.0002687,2]
[331394486,1720337442257,-3000.0,0.0002688,2]
[331394487,1720337442266,-3000.0,0.0002689,2]
[331394488,1720337442275,-3000.0,0.000269,2]
[331394489,1720337442284,-3000.0,0.0002691,2]
[331394490,1720337442294,-150.0,0.00026915,2]
[331394491,1720337442303,-351.0,0.00026915,2]
[331394492,1720337442313,-1405.0,0.00026915,2]
[331394493,1720337442323,-3000.0,0.0002692,2]
[331394494,1720337442332,-3000.0,0.0002693,2]
[331394495,1720337442341,-3000.0,0.0002694,2]
[331394496,1720337442351,-3000.0,0.0002695,2]
[331394497,1720337442360,-3000.0,0.0002696,2]
[331394498,1720337442370,-3365.551689,0.0002697,2]
[331394499,1720337442379,-150.0,0.00026999,2]
[331394500,1720337442388,-167.555182,0.00027123,2]
[331394501,1720337442398,-167.555182,0.00027123,120]
[331394502,1720337442407,-231.432067,0.00027175,7]
[331394503,1720337442416,-231.432067,0.00027175,7]
[331394504,1720337442426,-275.898997,0.00027175,7]
[331394505,1720337442435,-275.898997,0.00027175,7]
[331394506,1720337442445,-208.382013,0.00027175,7]
[331394507,1720337442454,-208.382013,0.00027175,7]
[331394508,1720337442463,-293.29664643,0.00027194,2]
[331394509,1720337442472,-750.0,0.00027195,2]
[331394510,1720337442482,-433.316149,0.00027195,2]
[331394511,1720337442491,-798.831825,0.00027216,2]
[331394512,1720337442500,-500.0,0.00027397,2]
[331394513,1720337442509,-292.64190241,0.00027397,2]
[331394514,1720337442518,-231.432067,0.0002749,7]
[331394515,1720337442527,-231.432067,0.0002749,7]
[331394516,1720337442537,-208.382013,0.0002749,7]
[331394517,1720337442546,-208.382013,0.0002749,7]
[331394518,1720337442555,-1000.0,0.00027499,30]
[331394519,1720337442564,-275.898997,0.00027499,7]
[331394520,1720337442574,-275.898997,0.00027499,7]
[331394521,1720337442583,-1000.0,0.00027499,2]
[331394522,1720337442592,-18323.22973136,0.000275,2]
[331394523,1720337442602,-189.12210345,0.000275,2]
[331394524,1720337442611,-763.48993106,0.000275,2]
[331394525,1720337442620,-2200.0,0.000275,8]
[331394526,1720337442633,-4174.40467449,0.000275,2]
[331394527,1720337442642,-153.552436,0.000275,7]
[331394528,1720337442651,-152.906873,0.000275,7]
[331394529,1720337442660,-151.0,0.000275,7]
[331394530,1720337442670,-1294.82962649,0.000279,2]
[331394531,1720337442679,-231.432067,0.0002798,7]
[331394532,1720337442688,-231.432067,0.0002798,7]
[331394533,1720337442698,-275.898997,0.0002798,7]
[331394534,1720337442708,-275.898997,0.0002798,7]
[331394535,1720337442717,-208.382013,0.0002798,7]
[331394536,1720337442726,-208.382013,0.0002798,7]
[331394537,1720337442736,-1000.0,0.00027989,30]
[331394538,1720337442745,-31460.27264865,0.0002799,2]
[331394539,1720337442755,-151.0,0.0002799,7]
[331394540,1720337442764,-151.0,0.0002799,7]